[Event "*** Titled Tuesday Blitz"]
[Site "Chess.com"]
[Date "2020.10.27"]
[Round "2"]
[White "Keures"]
[Black "IMprovidence"]
[Result "0-1"]
[WhiteElo "2233"]
[BlackElo "2458"]
[TimeControl "180+1"]
[EndTime "10:15:40 PDT"]
[Termination "IMprovidence won by resignation"]

1. d4 {[%clk 0:03:00.9]} 1... Nf6 {[%clk 0:02:59.5]} 2. c4 {[%clk 0:03:00.6]}
2... e6 {[%clk 0:02:59.1]} 3. Nc3 {[%clk 0:02:59.6]} 3... Bb4 {[%clk 0:02:58.7]}
4. e3 {[%clk 0:03:00]} 4... O-O {[%clk 0:02:58.2]} 5. Ne2 {[%clk 0:03:00.3]}
5... Re8 {[%clk 0:02:58.6]} 6. a3 {[%clk 0:02:59.7]} 6... Bf8 {[%clk 0:02:56.7]}
7. Ng3 {[%clk 0:02:58.6]} 7... d5 {[%clk 0:02:51.5]} 8. Bd3 {[%clk 0:02:48.8]}
8... dxc4 {[%clk 0:02:49.7]} 9. Bxc4 {[%clk 0:02:49.7]} 9... c5 {[%clk
0:02:49.9]} 10. dxc5 {[%clk 0:02:47.4]} 10... Qxd1+ {[%clk 0:02:48.9]} 11. Nxd1
{[%clk 0:02:47.6]} 11... Bxc5 {[%clk 0:02:49.7]} 12. b4 {[%clk 0:02:47.3]} 12...
Bd6 {[%clk 0:02:47]} 13. Bb2 {[%clk 0:02:46.9]} 13... Nbd7 {[%clk 0:02:47.1]}
14. O-O {[%clk 0:02:41]} 14... a6 {[%clk 0:02:47]} 15. Be2 {[%clk 0:02:35.4]}
15... b5 {[%clk 0:02:40.9]} 16. Bf3 {[%clk 0:02:35.7]} 16... Rb8 {[%clk
0:02:40.4]} 17. Rc1 {[%clk 0:02:35.6]} 17... Bb7 {[%clk 0:02:38.1]} 18. Nc3
{[%clk 0:02:34.6]} 18... Bxf3 {[%clk 0:02:34.9]} 19. gxf3 {[%clk 0:02:34.2]}
19... Ne5 {[%clk 0:02:35.6]} 20. f4 {[%clk 0:02:26.2]} 20... Nd3 {[%clk
0:02:32]} 21. Rc2 {[%clk 0:02:20]} 21... Rec8 {[%clk 0:02:24.2]} 22. Rd1 {[%clk
0:01:57.6]} 22... Nxb2 {[%clk 0:02:23]} 23. Rxd6 {[%clk 0:01:57.3]} 23... Na4
{[%clk 0:02:15.3]} 24. Nge2 {[%clk 0:01:25]} 24... Ne4 {[%clk 0:02:02.7]} 25.
Rd3 {[%clk 0:01:23.4]} 25... Rc4 {[%clk 0:01:55]} 26. f3 {[%clk 0:01:23.1]}
26... Nexc3 {[%clk 0:01:54.3]} 27. Nxc3 {[%clk 0:01:18.8]} 27... Rbc8 {[%clk
0:01:54.2]} 28. Nxa4 {[%clk 0:01:09]} 28... Rxc2 {[%clk 0:01:53.4]} 29. Nc5
{[%clk 0:01:09.2]} 29... a5 {[%clk 0:01:51]} 30. Rd7 {[%clk 0:00:49]} 30... axb4
{[%clk 0:01:47.3]} 31. axb4 {[%clk 0:00:49.9]} 31... Rb2 {[%clk 0:01:46.2]} 32.
Nb7 {[%clk 0:00:41.9]} 32... Rc1+ {[%clk 0:01:45.2]} 0-1

[Event "*** Titled Tuesday Blitz"]
[Site "Chess.com"]
[Date "2020.10.27"]
[Round "2"]
[White "AndreyNeves"]
[Black "Dr_crypt"]
[Result "1-0"]
[WhiteElo "2263"]
[BlackElo "2455"]
[TimeControl "180+1"]
[EndTime "10:15:43 PDT"]
[Termination "AndreyNeves won by resignation"]

1. d4 {[%clk 0:03:00.9]} 1... d5 {[%clk 0:02:59.1]} 2. c4 {[%clk 0:03:00.3]}
2... c6 {[%clk 0:02:59.2]} 3. Nf3 {[%clk 0:02:59.7]} 3... Nf6 {[%clk 0:02:59.4]}
4. e3 {[%clk 0:02:58.6]} 4... e6 {[%clk 0:02:56.1]} 5. b3 {[%clk 0:02:58]} 5...
Ne4 {[%clk 0:02:55.5]} 6. Bb2 {[%clk 0:02:54.5]} 6... Bb4+ {[%clk 0:02:54.1]} 7.
Nbd2 {[%clk 0:02:53.9]} 7... Qa5 {[%clk 0:02:46.6]} 8. a3 {[%clk 0:02:53.5]}
8... Nxd2 {[%clk 0:02:33.2]} 9. Nxd2 {[%clk 0:02:45]} 9... Bxd2+ {[%clk
0:02:31.2]} 10. Qxd2 {[%clk 0:02:45]} 10... Qxd2+ {[%clk 0:02:31.7]} 11. Kxd2
{[%clk 0:02:45]} 11... Nd7 {[%clk 0:02:26.4]} 12. Bd3 {[%clk 0:02:44.3]} 12...
f5 {[%clk 0:02:25.3]} 13. b4 {[%clk 0:02:34.7]} 13... dxc4 {[%clk 0:02:15]} 14.
Bxc4 {[%clk 0:02:33.8]} 14... Nb6 {[%clk 0:02:15.1]} 15. Bb3 {[%clk 0:02:32.7]}
15... Bd7 {[%clk 0:02:09]} 16. f3 {[%clk 0:02:29.3]} 16... Ke7 {[%clk 0:01:59]}
17. e4 {[%clk 0:02:28.5]} 17... fxe4 {[%clk 0:01:56]} 18. fxe4 {[%clk
0:02:28.1]} 18... Rhf8 {[%clk 0:01:56.7]} 19. Rhf1 {[%clk 0:02:27.8]} 19... Rxf1
{[%clk 0:01:47.7]} 20. Rxf1 {[%clk 0:02:25.9]} 20... a5 {[%clk 0:01:48.2]} 21.
Bc3 {[%clk 0:02:22.7]} 21... a4 {[%clk 0:01:47]} 22. Ba2 {[%clk 0:02:21.3]}
22... Rc8 {[%clk 0:01:37.3]} 23. Ke3 {[%clk 0:02:17.7]} 23... Be8 {[%clk
0:01:30.2]} 24. Be1 {[%clk 0:02:08.4]} 24... Bg6 {[%clk 0:01:27.7]} 25. Bh4+
{[%clk 0:02:02]} 25... Kd7 {[%clk 0:01:27.6]} 26. g4 {[%clk 0:01:56.4]} 26...
Re8 {[%clk 0:01:26.8]} 27. Bg3 {[%clk 0:01:54.6]} 27... Nc8 {[%clk 0:00:53.1]}
28. h4 {[%clk 0:01:48.7]} 28... Nd6 {[%clk 0:00:52.3]} 29. Bxd6 {[%clk
0:01:47.3]} 29... Kxd6 {[%clk 0:00:50.7]} 30. h5 {[%clk 0:01:47.3]} 1-0

[Event "*** Titled Tuesday Blitz"]
[Site "Chess.com"]
[Date "2020.10.27"]
[Round "2"]
[White "mjray79"]
[Black "emiliochess"]
[Result "1-0"]
[WhiteElo "2457"]
[BlackElo "2211"]
[TimeControl "180+1"]
[EndTime "10:15:48 PDT"]
[Termination "mjray79 won by resignation"]

1. d4 {[%clk 0:03:00.9]} 1... d5 {[%clk 0:02:58.1]} 2. c4 {[%clk 0:03:01.2]}
2... c6 {[%clk 0:02:57]} 3. Nf3 {[%clk 0:03:01.4]} 3... Nf6 {[%clk 0:02:53]} 4.
Nc3 {[%clk 0:02:59.2]} 4... e6 {[%clk 0:02:51.9]} 5. e3 {[%clk 0:02:56.9]} 5...
Nbd7 {[%clk 0:02:51.4]} 6. Qc2 {[%clk 0:02:55]} 6... Bd6 {[%clk 0:02:48.7]} 7.
b3 {[%clk 0:02:54.1]} 7... O-O {[%clk 0:02:46.3]} 8. Bb2 {[%clk 0:02:53.8]} 8...
b6 {[%clk 0:02:45.5]} 9. Bd3 {[%clk 0:02:54.1]} 9... Bb7 {[%clk 0:02:45]} 10. e4
{[%clk 0:02:53.4]} 10... dxe4 {[%clk 0:02:44.3]} 11. Nxe4 {[%clk 0:02:54.3]}
11... Nxe4 {[%clk 0:02:44.8]} 12. Bxe4 {[%clk 0:02:55.2]} 12... Nf6 {[%clk
0:02:45.2]} 13. Bd3 {[%clk 0:02:55.1]} 13... c5 {[%clk 0:02:44.3]} 14. dxc5
{[%clk 0:02:54.4]} 14... Bxc5 {[%clk 0:02:44.4]} 15. Ng5 {[%clk 0:02:52.9]}
15... h6 {[%clk 0:02:43]} 16. Rd1 {[%clk 0:02:41.5]} 16... Qe7 {[%clk
0:02:39.4]} 17. Nf3 {[%clk 0:02:31.4]} 17... Ng4 {[%clk 0:02:26.2]} 18. O-O
{[%clk 0:02:17.7]} 18... Bxf3 {[%clk 0:01:59.1]} 19. gxf3 {[%clk 0:02:18.6]}
19... Nf6 {[%clk 0:01:36.3]} 20. Kh1 {[%clk 0:02:15.3]} 20... Kh8 {[%clk
0:01:33.9]} 21. Rg1 {[%clk 0:02:14.1]} 21... Rad8 {[%clk 0:01:34.2]} 22. Rg2
{[%clk 0:02:06.5]} 22... Nh5 {[%clk 0:01:34.2]} 23. Rdg1 {[%clk 0:02:02.4]}
23... e5 {[%clk 0:01:31.5]} 24. Be4 {[%clk 0:01:47.1]} 24... g5 {[%clk
0:01:27.1]} 25. Bf5 {[%clk 0:01:28]} 25... Nf4 {[%clk 0:01:25.7]} 26. Rg4 {[%clk
0:01:27.9]} 26... Nh3 {[%clk 0:01:21.1]} 27. Rf1 {[%clk 0:01:24.6]} 27... Qf6
{[%clk 0:01:18.4]} 28. Qe4 {[%clk 0:01:21.9]} 28... Nxf2+ {[%clk 0:01:17.4]} 29.
Rxf2 {[%clk 0:01:20.7]} 29... Bxf2 {[%clk 0:01:18.3]} 30. Bxe5 {[%clk
0:01:19.9]} 30... Qxe5 {[%clk 0:01:08.7]} 31. Qxe5+ {[%clk 0:01:19.7]} 31... Kg8
{[%clk 0:01:09]} 32. Qf6 {[%clk 0:01:13.9]} 32... Rfe8 {[%clk 0:01:01.3]} 1-0

[Event "*** Titled Tuesday Blitz"]
[Site "Chess.com"]
[Date "2020.10.27"]
[Round "2"]
[White "Vandros57"]
[Black "Ermito2020"]
[Result "0-1"]
[WhiteElo "2210"]
[BlackElo "2656"]
[TimeControl "180+1"]
[EndTime "10:15:53 PDT"]
[Termination "Ermito2020 won on time"]

1. d4 {[%clk 0:03:00.9]} 1... e6 {[%clk 0:02:58.6]} 2. Nf3 {[%clk 0:02:59.7]}
2... f5 {[%clk 0:02:58.7]} 3. c4 {[%clk 0:02:55.4]} 3... Nf6 {[%clk 0:02:58.9]}
4. Nc3 {[%clk 0:02:54.2]} 4... Be7 {[%clk 0:02:59.1]} 5. Bg5 {[%clk 0:02:53.1]}
5... O-O {[%clk 0:02:53.5]} 6. Bxf6 {[%clk 0:02:49.1]} 6... Bxf6 {[%clk
0:02:53.1]} 7. e4 {[%clk 0:02:48]} 7... fxe4 {[%clk 0:02:52.1]} 8. Nxe4 {[%clk
0:02:47.1]} 8... b6 {[%clk 0:02:50]} 9. Bd3 {[%clk 0:02:45.1]} 9... Bb7 {[%clk
0:02:47.2]} 10. O-O {[%clk 0:02:40]} 10... Nc6 {[%clk 0:02:46.4]} 11. Bc2 {[%clk
0:02:17.2]} 11... g6 {[%clk 0:02:45.7]} 12. Nxf6+ {[%clk 0:02:10.3]} 12... Qxf6
{[%clk 0:02:44.9]} 13. h4 {[%clk 0:02:04.9]} 13... Nb4 {[%clk 0:02:41.3]} 14.
Ng5 {[%clk 0:01:54]} 14... Nxc2 {[%clk 0:02:32.8]} 15. Qxc2 {[%clk 0:01:53.1]}
15... Qxd4 {[%clk 0:02:30.8]} 16. g3 {[%clk 0:00:39.8]} 16... Rf5 {[%clk
0:02:29]} 17. Rad1 {[%clk 0:00:36.3]} 17... Qg4 {[%clk 0:02:18]} 18. Rxd7 {[%clk
0:00:30.4]} 18... Rxg5 {[%clk 0:02:17.8]} 19. hxg5 {[%clk 0:00:26.4]} 19... Qf3
{[%clk 0:02:10.6]} 20. Rd5 {[%clk 0:00:12.6]} 20... exd5 {[%clk 0:02:08.5]} 21.
Qc3 {[%clk 0:00:03.6]} 21... d4 {[%clk 0:01:54.3]} 22. Qxf3 {[%clk 0:00:01.9]}
22... Bxf3 {[%clk 0:01:55.2]} 23. Re1 {[%clk 0:00:01.8]} 23... d3 {[%clk
0:01:52.8]} 24. Re7 {[%clk 0:00:01.6]} 24... Rd8 {[%clk 0:01:47.7]} 0-1

[Event "*** Titled Tuesday Blitz"]
[Site "Chess.com"]
[Date "2020.10.27"]
[Round "2"]
[White "chenxiaoyuer"]
[Black "BocharovD"]
[Result "0-1"]
[WhiteElo "2512"]
[BlackElo "2772"]
[TimeControl "180+1"]
[EndTime "10:15:58 PDT"]
[Termination "BocharovD won by resignation"]

1. e4 {[%clk 0:03:00.9]} 1... c5 {[%clk 0:02:59.6]} 2. Nf3 {[%clk 0:02:58.3]}
2... d6 {[%clk 0:02:59.3]} 3. d4 {[%clk 0:02:58.2]} 3... cxd4 {[%clk 0:03:00.2]}
4. Nxd4 {[%clk 0:02:58.7]} 4... Nf6 {[%clk 0:03:00.1]} 5. Nc3 {[%clk 0:02:58.8]}
5... a6 {[%clk 0:03:00.1]} 6. Be2 {[%clk 0:02:58.1]} 6... e6 {[%clk 0:02:58.6]}
7. O-O {[%clk 0:02:56.5]} 7... Qc7 {[%clk 0:02:58.7]} 8. a4 {[%clk 0:02:45.4]}
8... b6 {[%clk 0:02:54.9]} 9. f4 {[%clk 0:02:41.8]} 9... Bb7 {[%clk 0:02:54.6]}
10. Bf3 {[%clk 0:02:40.7]} 10... Nc6 {[%clk 0:02:54.4]} 11. Be3 {[%clk
0:02:25.1]} 11... Be7 {[%clk 0:02:53.8]} 12. Qe2 {[%clk 0:02:12.8]} 12... O-O
{[%clk 0:02:52]} 13. Nb3 {[%clk 0:02:05.7]} 13... Na5 {[%clk 0:02:50.2]} 14. Bd4
{[%clk 0:01:50.3]} 14... e5 {[%clk 0:02:45.4]} 15. Be3 {[%clk 0:01:40.9]} 15...
Nc4 {[%clk 0:02:44.5]} 16. fxe5 {[%clk 0:01:28.4]} 16... dxe5 {[%clk 0:02:43.2]}
17. Nd5 {[%clk 0:01:24.5]} 17... Nxd5 {[%clk 0:02:39.7]} 18. exd5 {[%clk
0:01:25.4]} 18... Nxe3 {[%clk 0:02:36.8]} 19. Qxe3 {[%clk 0:01:22.4]} 19... f5
{[%clk 0:02:32.8]} 20. Qd2 {[%clk 0:01:09.3]} 20... e4 {[%clk 0:02:28.2]} 21.
Be2 {[%clk 0:01:09.2]} 21... Bd6 {[%clk 0:02:28.2]} 22. h3 {[%clk 0:01:03.6]}
22... f4 {[%clk 0:02:15.2]} 23. c4 {[%clk 0:00:56.6]} 23... f3 {[%clk
0:02:06.6]} 24. gxf3 {[%clk 0:00:54.1]} 24... exf3 {[%clk 0:02:07.5]} 25. Bd3
{[%clk 0:00:41.7]} 25... Bc8 {[%clk 0:01:54.2]} 26. Nd4 {[%clk 0:00:37.4]} 26...
Bxh3 {[%clk 0:01:51.9]} 27. Rxf3 {[%clk 0:00:30.7]} 27... Bc5 {[%clk 0:01:48.6]}
28. Rxf8+ {[%clk 0:00:27.1]} 28... Rxf8 {[%clk 0:01:47.2]} 29. Be4 {[%clk
0:00:26.7]} 29... Qg3+ {[%clk 0:01:44.4]} 30. Kh1 {[%clk 0:00:22.7]} 30... Rf2
{[%clk 0:01:42.1]} 0-1

[Event "*** Titled Tuesday Blitz"]
[Site "Chess.com"]
[Date "2020.10.27"]
[Round "2"]
[White "Snegokhod"]
[Black "Yoshikrov"]
[Result "1-0"]
[WhiteElo "2419"]
[BlackElo "2118"]
[TimeControl "180+1"]
[EndTime "10:16:02 PDT"]
[Termination "Snegokhod won by resignation"]

1. e4 {[%clk 0:03:00.9]} 1... c5 {[%clk 0:03:00.2]} 2. Nf3 {[%clk 0:02:56.8]}
2... d6 {[%clk 0:03:00.2]} 3. d4 {[%clk 0:02:56.4]} 3... cxd4 {[%clk 0:03:00.3]}
4. Qxd4 {[%clk 0:02:57.3]} 4... Nc6 {[%clk 0:02:59.9]} 5. Bb5 {[%clk 0:02:56.8]}
5... Bd7 {[%clk 0:03:00.3]} 6. Bxc6 {[%clk 0:02:56.7]} 6... Bxc6 {[%clk
0:03:01.2]} 7. Nc3 {[%clk 0:02:57.1]} 7... e6 {[%clk 0:02:50.6]} 8. Bg5 {[%clk
0:02:56.3]} 8... Nf6 {[%clk 0:02:46.2]} 9. O-O-O {[%clk 0:02:55.5]} 9... Be7
{[%clk 0:02:43.6]} 10. Rhe1 {[%clk 0:02:55.5]} 10... Qc7 {[%clk 0:02:43.8]} 11.
Qd2 {[%clk 0:02:54]} 11... a6 {[%clk 0:02:43.2]} 12. Nd4 {[%clk 0:02:54]} 12...
Rc8 {[%clk 0:02:38.5]} 13. f3 {[%clk 0:02:53.3]} 13... O-O {[%clk 0:02:36.2]}
14. h4 {[%clk 0:02:52.7]} 14... b5 {[%clk 0:02:33.7]} 15. g3 {[%clk 0:02:52.7]}
15... Rfe8 {[%clk 0:02:25.4]} 16. g4 {[%clk 0:02:52.5]} 16... b4 {[%clk
0:02:21.6]} 17. Nce2 {[%clk 0:02:52.1]} 17... a5 {[%clk 0:02:16.5]} 18. Rg1
{[%clk 0:02:51.6]} 18... d5 {[%clk 0:02:08.9]} 19. e5 {[%clk 0:02:51.5]} 19...
Nd7 {[%clk 0:01:56.3]} 20. Bxe7 {[%clk 0:02:50.2]} 20... Rxe7 {[%clk 0:01:56.2]}
21. f4 {[%clk 0:02:46.4]} 21... Nc5 {[%clk 0:01:52.5]} 22. Ng3 {[%clk
0:02:39.6]} 22... Ne4 {[%clk 0:01:38.3]} 23. Nxe4 {[%clk 0:02:37.9]} 23... dxe4
{[%clk 0:01:39.2]} 24. Nxc6 {[%clk 0:02:35.5]} 24... Qxc6 {[%clk 0:01:38]} 25.
Kb1 {[%clk 0:02:35.5]} 25... g6 {[%clk 0:01:21.9]} 26. h5 {[%clk 0:02:27.9]}
26... Rec7 {[%clk 0:01:13.6]} 27. Rc1 {[%clk 0:02:22.3]} 27... Qd5 {[%clk
0:01:03.8]} 28. Qh2 {[%clk 0:02:10.8]} 28... a4 {[%clk 0:01:00.1]} 29. hxg6
{[%clk 0:02:09.1]} 29... fxg6 {[%clk 0:01:00.3]} 30. f5 {[%clk 0:02:09.2]} 30...
a3 {[%clk 0:00:43.6]} 31. fxg6 {[%clk 0:02:02.1]} 31... hxg6 {[%clk 0:00:42.4]}
32. Rh1 {[%clk 0:01:55.1]} 1-0

[Event "*** Titled Tuesday Blitz"]
[Site "Chess.com"]
[Date "2020.10.27"]
[Round "2"]
[White "tlomigtlis"]
[Black "FlamingPhoenix2910"]
[Result "0-1"]
[WhiteElo "2582"]
[BlackElo "2886"]
[TimeControl "180+1"]
[EndTime "10:16:05 PDT"]
[Termination "FlamingPhoenix2910 won by checkmate"]

1. d4 {[%clk 0:03:00.9]} 1... Nf6 {[%clk 0:02:59.5]} 2. c4 {[%clk 0:02:59.4]}
2... e6 {[%clk 0:03:00.4]} 3. Nc3 {[%clk 0:02:59.1]} 3... d5 {[%clk 0:03:01.3]}
4. cxd5 {[%clk 0:02:58.8]} 4... exd5 {[%clk 0:03:02.2]} 5. Bg5 {[%clk
0:02:58.7]} 5... c5 {[%clk 0:03:03.1]} 6. Nf3 {[%clk 0:02:57.4]} 6... Nc6 {[%clk
0:03:03.8]} 7. e3 {[%clk 0:02:57.6]} 7... cxd4 {[%clk 0:03:04.3]} 8. Nxd4 {[%clk
0:02:57.3]} 8... Bb4 {[%clk 0:03:04.7]} 9. Bb5 {[%clk 0:02:56.9]} 9... Qa5
{[%clk 0:03:04.9]} 10. O-O {[%clk 0:02:55.4]} 10... Bxc3 {[%clk 0:03:05.2]} 11.
bxc3 {[%clk 0:02:51.8]} 11... Ne4 {[%clk 0:03:05.6]} 12. Bf4 {[%clk 0:02:41.7]}
12... Bd7 {[%clk 0:03:05.5]} 13. Qb3 {[%clk 0:02:37.1]} 13... O-O {[%clk
0:02:55.4]} 14. Qxd5 {[%clk 0:02:25.1]} 14... Nxd4 {[%clk 0:02:55.1]} 15. cxd4
{[%clk 0:02:01.1]} 15... Nf6 {[%clk 0:02:51.6]} 16. Qg5 {[%clk 0:01:55.7]} 16...
Qxb5 {[%clk 0:02:50.6]} 17. Be5 {[%clk 0:01:55.4]} 17... h6 {[%clk 0:02:45.7]}
18. Qg3 {[%clk 0:01:52.1]} 18... Qc6 {[%clk 0:02:29.7]} 19. Rac1 {[%clk
0:01:50.2]} 19... Qe6 {[%clk 0:02:27.4]} 20. d5 {[%clk 0:01:32.9]} 20... Qf5
{[%clk 0:02:27.4]} 21. Rc7 {[%clk 0:01:31.6]} 21... Nh5 {[%clk 0:02:19.2]} 22.
Qf3 {[%clk 0:01:22.9]} 22... Qxe5 {[%clk 0:02:14.1]} 23. Rxd7 {[%clk 0:01:22.2]}
23... Nf6 {[%clk 0:02:10.1]} 24. Rxb7 {[%clk 0:01:21.4]} 24... Qxd5 {[%clk
0:02:10.6]} 25. Qxd5 {[%clk 0:01:17.7]} 25... Nxd5 {[%clk 0:02:11.5]} 26. Rd1
{[%clk 0:01:18.4]} 26... Nc3 {[%clk 0:02:12]} 27. Rdd7 {[%clk 0:01:17.9]} 27...
a5 {[%clk 0:02:09.8]} 28. a3 {[%clk 0:01:15.7]} 28... Rfd8 {[%clk 0:02:03.1]}
29. h3 {[%clk 0:01:08.8]} 29... Rxd7 {[%clk 0:02:03.3]} 30. Rxd7 {[%clk
0:01:09.7]} 30... a4 {[%clk 0:02:03.7]} 31. Rd3 {[%clk 0:01:08.6]} 31... Nb5
{[%clk 0:02:04.2]} 32. f4 {[%clk 0:01:08.3]} 32... Rc8 {[%clk 0:02:04.4]} 33.
Kf2 {[%clk 0:01:05.9]} 33... Rc3 {[%clk 0:02:03.8]} 34. Rd8+ {[%clk 0:01:05.4]}
34... Kh7 {[%clk 0:02:04.3]} 35. e4 {[%clk 0:01:06.3]} 35... Rxa3 {[%clk
0:02:02]} 36. e5 {[%clk 0:01:07.2]} 36... Rb3 {[%clk 0:01:57.2]} 37. f5 {[%clk
0:01:06.1]} 37... a3 {[%clk 0:01:56.5]} 38. e6 {[%clk 0:00:59.8]} 38... fxe6
{[%clk 0:01:57.4]} 39. fxe6 {[%clk 0:01:00.4]} 39... a2 {[%clk 0:01:46.9]} 40.
e7 {[%clk 0:01:00.5]} 40... a1=Q {[%clk 0:01:46.4]} 41. Rh8+ {[%clk 0:01:00.1]}
41... Kxh8 {[%clk 0:01:42.5]} 42. e8=Q+ {[%clk 0:01:01]} 42... Kh7 {[%clk
0:01:43.1]} 43. Qe4+ {[%clk 0:01:00.5]} 43... g6 {[%clk 0:01:43.6]} 44. Qe6
{[%clk 0:00:58.4]} 44... Qd4+ {[%clk 0:01:42.8]} 45. Ke2 {[%clk 0:00:54.7]}
45... Rb2+ {[%clk 0:01:41.4]} 46. Ke1 {[%clk 0:00:54.8]} 46... Qg1# {[%clk
0:01:40.8]} 0-1

[Event "*** Titled Tuesday Blitz"]
[Site "Chess.com"]
[Date "2020.10.27"]
[Round "2"]
[White "nurgyulsalimova"]
[Black "Sergey85Rodchenkov"]
[Result "1-0"]
[WhiteElo "2720"]
[BlackElo "2437"]
[TimeControl "180+1"]
[EndTime "10:16:19 PDT"]
[Termination "nurgyulsalimova won by resignation"]

1. c4 {[%clk 0:03:00.9]} 1... Nf6 {[%clk 0:02:59.3]} 2. b3 {[%clk 0:02:59.6]}
2... b6 {[%clk 0:02:58.7]} 3. Bb2 {[%clk 0:02:58.9]} 3... Bb7 {[%clk 0:02:59]}
4. Nf3 {[%clk 0:02:57.8]} 4... e6 {[%clk 0:02:56]} 5. e3 {[%clk 0:02:57]} 5...
d5 {[%clk 0:02:55.2]} 6. Be2 {[%clk 0:02:56.1]} 6... Bd6 {[%clk 0:02:54.7]} 7.
Qc2 {[%clk 0:02:54.3]} 7... O-O {[%clk 0:02:54.1]} 8. Rg1 {[%clk 0:02:40.6]}
8... c5 {[%clk 0:02:53.4]} 9. g4 {[%clk 0:02:37.7]} 9... Nc6 {[%clk 0:02:52.7]}
10. g5 {[%clk 0:02:35.4]} 10... Nd7 {[%clk 0:02:48.3]} 11. h4 {[%clk 0:02:26.3]}
11... Re8 {[%clk 0:02:32.7]} 12. Nc3 {[%clk 0:02:10.4]} 12... Nb4 {[%clk
0:02:30.5]} 13. Qb1 {[%clk 0:02:07.4]} 13... d4 {[%clk 0:02:30]} 14. Ne4 {[%clk
0:02:02.2]} 14... Bf8 {[%clk 0:02:18.4]} 15. h5 {[%clk 0:01:57.5]} 15... e5
{[%clk 0:02:15.6]} 16. a3 {[%clk 0:01:53.7]} 16... Nc6 {[%clk 0:02:13.9]} 17. d3
{[%clk 0:01:52.9]} 17... Kh8 {[%clk 0:02:02.4]} 18. Ng3 {[%clk 0:01:49.6]} 18...
a6 {[%clk 0:01:41.7]} 19. e4 {[%clk 0:01:49.2]} 19... b5 {[%clk 0:01:41.5]} 20.
Bc1 {[%clk 0:01:41.2]} 20... Rb8 {[%clk 0:01:39.8]} 21. Qc2 {[%clk 0:01:38.5]}
21... Nb6 {[%clk 0:01:27.4]} 22. g6 {[%clk 0:01:34.5]} 22... Qc7 {[%clk
0:01:16.8]} 23. Nf5 {[%clk 0:01:29.7]} 23... Bc8 {[%clk 0:01:13.7]} 24. Ng5
{[%clk 0:01:27.8]} 24... fxg6 {[%clk 0:01:07.9]} 25. hxg6 {[%clk 0:01:26.4]}
25... hxg6 {[%clk 0:01:03.3]} 26. Bg4 {[%clk 0:01:16.4]} 26... Kg8 {[%clk
0:00:59]} 27. f3 {[%clk 0:01:14.7]} 27... Be7 {[%clk 0:00:54]} 28. Nxe7+ {[%clk
0:01:10.1]} 28... Qxe7 {[%clk 0:00:50.8]} 29. Qh2 {[%clk 0:01:08.5]} 29... Qf6
{[%clk 0:00:48.6]} 30. Rh1 {[%clk 0:01:03.8]} 30... Kf8 {[%clk 0:00:44.5]} 31.
Nh7+ {[%clk 0:01:03.5]} 1-0

[Event "*** Titled Tuesday Blitz"]
[Site "Chess.com"]
[Date "2020.10.27"]
[Round "2"]
[White "mbojan"]
[Black "mc4chess"]
[Result "1-0"]
[WhiteElo "2710"]
[BlackElo "2396"]
[TimeControl "180+1"]
[EndTime "10:16:19 PDT"]
[Termination "mbojan won by resignation"]

1. e4 {[%clk 0:03:00.9]} 1... c5 {[%clk 0:02:55.6]} 2. Nf3 {[%clk 0:03:00.6]}
2... e6 {[%clk 0:02:55.5]} 3. d4 {[%clk 0:03:00.8]} 3... cxd4 {[%clk 0:02:56.4]}
4. Nxd4 {[%clk 0:03:01.7]} 4... a6 {[%clk 0:02:56.3]} 5. c4 {[%clk 0:03:01.7]}
5... Qc7 {[%clk 0:02:56.5]} 6. Nc3 {[%clk 0:03:01.1]} 6... Nf6 {[%clk
0:02:57.1]} 7. Be2 {[%clk 0:03:01]} 7... Nc6 {[%clk 0:02:56.7]} 8. Nc2 {[%clk
0:02:56.2]} 8... g6 {[%clk 0:02:56.6]} 9. O-O {[%clk 0:02:56]} 9... Bg7 {[%clk
0:02:56.8]} 10. Be3 {[%clk 0:02:53.3]} 10... O-O {[%clk 0:02:55.6]} 11. Rc1
{[%clk 0:02:52.6]} 11... d6 {[%clk 0:02:54]} 12. Qd2 {[%clk 0:02:48.8]} 12...
Rd8 {[%clk 0:02:53.6]} 13. Rfd1 {[%clk 0:02:48.4]} 13... Qe7 {[%clk 0:02:53.2]}
14. Bf4 {[%clk 0:02:43.9]} 14... e5 {[%clk 0:02:48.3]} 15. Bg5 {[%clk
0:02:40.6]} 15... Be6 {[%clk 0:02:47.5]} 16. h3 {[%clk 0:02:29.3]} 16... Rac8
{[%clk 0:02:45.8]} 17. b3 {[%clk 0:02:28.5]} 17... Qf8 {[%clk 0:02:44.8]} 18.
Bf3 {[%clk 0:02:15.7]} 18... h6 {[%clk 0:02:44.7]} 19. Be3 {[%clk 0:02:15.6]}
19... g5 {[%clk 0:02:43.7]} 20. Nd5 {[%clk 0:02:07.7]} 20... Bxd5 {[%clk
0:02:36.6]} 21. cxd5 {[%clk 0:02:06.3]} 21... Ne7 {[%clk 0:02:35.9]} 22. Bb6
{[%clk 0:02:04.3]} 22... Re8 {[%clk 0:02:35.9]} 23. Ne3 {[%clk 0:02:03.5]} 23...
Ng6 {[%clk 0:02:32.2]} 24. Nf5 {[%clk 0:01:51.4]} 24... Nf4 {[%clk 0:02:31.9]}
25. Kh2 {[%clk 0:01:45]} 25... Nd7 {[%clk 0:02:27]} 26. Be3 {[%clk 0:01:42.3]}
26... Ng6 {[%clk 0:02:25.8]} 27. g3 {[%clk 0:01:40]} 27... Bf6 {[%clk
0:02:03.7]} 28. Bg4 {[%clk 0:01:36.8]} 28... Rxc1 {[%clk 0:01:51]} 29. Rxc1
{[%clk 0:01:34.7]} 29... Rd8 {[%clk 0:01:18.9]} 30. Rc7 {[%clk 0:01:27.6]} 30...
Nf4 {[%clk 0:01:17.6]} 31. Qd1 {[%clk 0:01:14.9]} 31... b5 {[%clk 0:01:08.6]}
32. gxf4 {[%clk 0:01:09.2]} 32... exf4 {[%clk 0:01:05.8]} 33. Bd4 {[%clk
0:01:04.2]} 33... Ne5 {[%clk 0:01:06.2]} 34. Bxe5 {[%clk 0:01:02.7]} 34... Bxe5
{[%clk 0:01:06.4]} 35. Bh5 {[%clk 0:00:59.8]} 35... f3+ {[%clk 0:00:58.3]} 36.
Kg1 {[%clk 0:00:59.3]} 36... Rc8 {[%clk 0:00:57.1]} 37. Rxc8 {[%clk 0:00:58.7]}
1-0